Cogmind - Beta 14 @@@ ROGUE MODE // 2024.11.24 @ 15:57:15 Player: Ayre223 Result: Destroyed by L-31 Rogue with Katana Performance ------------- Evolutions (1) 500 Regions Visited (3) 600 Robots Destroyed (9) 45 Value Destroyed (306) 306 Prototype IDs (0) 0 Alien Tech Used (0) 0 Bonus (0) 0 TOTAL SCORE: 1451 Bonus ------- None Cogmind --------- Core Integrity 0/400 Matter 275/300 Energy 98/100 System Corruption 0% Temperature Cool (1) Movement Walking (120) Location -9/Mines Parts ------- > --- POWER (1) -------- (None) > --- PROPULSION (3) --- Aluminum Leg > --- UTILITY (3) ------ (None) > --- WEAPON (2) ------- (None) > --- INVENTORY (5) ---- (None) Peak State ------------ > --- POWER ------------ Light Ion Engine > --- PROPULSION ------- Wheel Wheel > --- UTILITY ---------- Core Shielding > --- WEAPON ----------- EM Pulse Gun EM Pulse Gun > --- INVENTORY -------- Small Laser [Rating: 6] Favorites ----------- Power Light Ion Engine Engine Light Ion Engine Propulsion Wheel Leg Aluminum Leg Wheel Wheel Utility Core Shielding Protection Core Shielding Weapon EM Pulse Gun Energy Gun EM Pulse Gun Build | -11 -10 -9 -9 ------- Run | Yrd Mat Mat Min Slots Evolved 2 | . . 2 . Power . | . . . . Propulsion 1 | . . 1 . Utility 1 | . . 1 . Weapon . | . . . . Parts Attached 15 | 5 4 6 . Power 3 | 1 1 1 . Engine 3 | 1 1 1 . Core . | . . . . Reactor . | . . . . Propulsion 4 | 2 . 2 . Treads . | . . . . Leg 2 | . . 2 . Wheel 2 | 2 . . . Hover . | . . . . Flight . | . . . . Utility 1 | . 1 . . Device . | . . . . Storage . | . . . . Processor . | . . . . Hackware . | . . . . Protection 1 | . 1 . . Artifact . | . . . . Weapon 7 | 2 2 3 . Energy Gun 7 | 2 2 3 . Energy Cannon . | . . . . Ballistic Gun . | . . . . Ballistic Cannon . | . . . . Launcher . | . . . . Special Weapon . | . . . . Impact Weapon . | . . . . Slashing Weapon . | . . . . Piercing Weapon . | . . . . Special Melee Weapon . | . . . . Unidentified Prototypes . | . . . . Parts Lost 11 | . . 9 2 Power 2 | . . 2 . Propulsion 3 | . . 2 1 Utility 1 | . . 1 . Weapon 5 | . . 4 1 Highest Loss Streak 9 | . . 9 2 To Critical Strikes . | . . . . Average Slot Usage (%) 58 | . 79 42 16 Engine 8 | . 14 4 . Leg 4 | . . 9 11 Wheel 17 | . 28 7 . Protection 6 | . 8 5 . Energy Gun 21 | . 28 15 5 Peak Build Rating 6 | 5 6 6 3 Average Rating 4 | 3 5 3 1 On Entrance 3 | . 5 6 3 Naked Turns 10 | . . 10 . Heaviest Build 10 | 7 10 8 . Greatest Support 20 | 20 20 20 10 Greatest Overweight (x) . | . . . . Average Overweight (x) . | . . . . Largest Inventory Capacity 5 | 5 5 5 5 Average Capacity 5 | 5 5 5 5 Most Carried 4 | 2 4 3 . Average Carried 1 | . 1 1 . Final Capacity 5 | 5 5 5 5 Final Carried 3 | 1 3 . . Class Distribution -------------------- 100% | Mutant Dominant Class ---------------- Mutant | -10/Materials Mutant | -9/Materials Mutant | -9/Mines Resources | -11 -10 -9 -9 ----------- Run | Yrd Mat Mat Min Matter Collected 270 | 250 20 . . Remotely . | . . . . Salvage Created 333 | 50 131 152 . Parts 20 | 3 8 9 . Haulers Intercepted . | . . . . Recyclers Shooed . | . . . . Parts Field Recycled . | . . . . Retrieved Matter . | . . . . Parts Self-Destructed . | . . . . Prevented . | . . . . Kills | -11 -10 -9 -9 ------- Run | Yrd Mat Mat Min Combat Hostiles Destroyed 7 | 1 3 3 . Guns 6 | 1 2 3 . AOE 1 | . 1 . . Classes Destroyed 3 | 1 1 1 . Operator 1 | . 1 . . Watcher 1 | . . 1 . Grunt 7 | 1 3 3 . Best Kill Streak 3 | 1 3 3 . Combat Bots Only 3 | 1 3 2 . Max Kills in Single Turn 1 | 1 1 1 . Gunslinging . | . . . . Exploded 1 | . 1 . . Melee . | . . . . Uniques/NPCs Destroyed . | . . . . Combat | -11 -10 -9 -9 -------- Run | Yrd Mat Mat Min Hostile Shots Fired 116 | 5 9 92 10 Missed 31 | 2 4 24 1 Damage Taken 1112 | 30 63 856 163 Core 447 | 20 9 356 62 Absorbed by Shields . | . . . . Redirected to Shielding 51 | . 2 49 . Core Remaining (%) 90 | 92 88 . . Volleys Fired 31 | 4 8 15 4 Largest 2 | 2 2 2 1 Hottest 80 | 80 80 80 40 Shots Fired 55 | 8 16 27 4 Gun 55 | 8 16 27 4 Cannon . | . . . . Launcher . | . . . . Special . | . . . . Kinetic . | . . . . Thermal 29 | . . 25 4 Explosive . | . . . . Electromagnetic 26 | 8 16 2 . Robot Hit Streak 5 | 4 5 5 5 Robot Miss Streak 3 | 3 2 2 1 Penetration Max . | . . . . Secondary Targets . | . . . . Shots Hit Robots 37 | 4 10 20 3 Core Hits 18 | 2 6 9 1 Critical Kills . | . . . . Critical Parts Destroyed . | . . . . Critical Strikes 1 | 1 . . . Corrupt 1 | 1 . . . Melee Attacks . | . . . . Impact . | . . . . Slashing . | . . . . Piercing . | . . . . Sneak Attacks . | . . . . Combat Hostiles . | . . . . Follow-up Attacks . | . . . . Damage Inflicted 642 | 49 311 249 33 Guns 478 | 49 147 249 33 Cannons . | . . . . Explosions 164 | . 164 . . Melee . | . . . . Ramming . | . . . . Kinetic . | . . . . Thermal 421 | . 164 224 33 Explosive . | . . . . Electromagnetic 221 | 49 147 25 . Impact . | . . . . Slashing . | . . . . Piercing . | . . . . Highest Corruption . | . . . . Average Corruption . | . . . . Corruption Purged . | . . . . Corruption Blocked . | . . . . Overload Shots . | . . . . Overflow Damage . | . . . . Projectiles . | . . . . Explosions . | . . . . Melee . | . . . . Knockbacks . | . . . . Impact . | . . . . Kinetic . | . . . . Secondary . | . . . . Self-Inflicted Damage . | . . . . Shots . | . . . . Rammed . | . . . . Targets Rammed . | . . . . Kicked . | . . . . Crushed . | . . . . Highest Temperature 307 | 90 93 307 . Average Temperature 100 | 45 40 153 . Received Heat Transfer 513 | 18 33 426 36 Siege Activations . | . . . . Robots Corrupted . | . . . . Combat Hostiles . | . . . . Parts Fried 2 | 1 1 . . Impact Corruptions . | . . . . Robots Melted . | . . . . Combat Hostiles . | . . . . Parts Melted . | . . . . Heat Transferred 725 | . 150 500 75 Parts Sabotaged . | . . . . Parts Stolen . | . . . . Parts Stripped . | . . . . Power Chain Reactions 3 | . 3 . . Alert | -11 -10 -9 -9 ------- Run | Yrd Mat Mat Min Peak Influence 142 | 20 142 101 44 Initial 59 | . 13 59 29 Average 52 | 3 64 69 28 Maximum Alert Level . | . . . . Low Security (%) 100 | 100 100 100 100 Level 1 . | . . . . Level 2 . | . . . . Level 3 . | . . . . Level 4 . | . . . . Level 5 . | . . . . High Security . | . . . . Max Security . | . . . . Squads Dispatched 3 | . 2 1 . Investigation . | . . . . Extermination . | . . . . Reinforcement 3 | . 2 1 . Assault . | . . . . Garrison . | . . . . Intercept . | . . . . Searches Triggered . | . . . . Construction Impeded . | . . . . Haulers Reinforced . | . . . . Active Scanning Responses . | . . . . Cargo Convoy Interrupts . | . . . . Stealth | -11 -10 -9 -9 --------- Run | Yrd Mat Mat Min Distress Signals 3 | . 2 1 . Communications Jammed . | . . . . Distress Signals . | . . . . Times Spotted 16 | 1 4 9 2 Peak Tracking Total 6 | 1 3 6 2 Tactical Retreats 1 | . . 1 . Traps | -11 -10 -9 -9 ------- Run | Yrd Mat Mat Min Traps Triggered . | . . . . Indirectly . | . . . . Trap Hack Attempts . | . . . . Triggered . | . . . . Disarmed . | . . . . Reprogrammed . | . . . . Reused . | . . . . Traps Extracted . | . . . . Installed . | . . . . Triggered . | . . . . Machines | -11 -10 -9 -9 ---------- Run | Yrd Mat Mat Min Machines Disabled 1 | . 1 . . Max in Single Turn 1 | . 1 . . Machines Repaired . | . . . . Machines Dismantled . | . . . . Machines Sabotaged . | . . . . Overloaded Fab Kills . | . . . . Hacking | -11 -10 -9 -9 --------- Run | Yrd Mat Mat Min Machines Accessed . | . . . . Terminals . | . . . . Fabricators . | . . . . Repair Stations . | . . . . Recycling Units . | . . . . Scanalyzers . | . . . . Garrison Access . | . . . . Total Hacks . | . . . . Successful . | . . . . Failed . | . . . . Catastrophic . | . . . . Database Lockouts . | . . . . Manual . | . . . . Terminals . | . . . . Fabricators . | . . . . Repair Stations . | . . . . Recycling Units . | . . . . Scanalyzers . | . . . . Garrison Access . | . . . . Terminal Hacks . | . . . . Fabricator Hacks . | . . . . Repair Station Hacks . | . . . . Recycling Unit Hacks . | . . . . Scanalyzer . | . . . . Garrison Access Hacks . | . . . . Unauthorized Hacks . | . . . . Terminals . | . . . . Fabricators . | . . . . Repair Stations . | . . . . Recycling Units . | . . . . Scanalyzers . | . . . . Garrison Access . | . . . . Data Cores Recovered 1 | . 1 . . Used . | . . . . Hacking Detections . | . . . . Full Trace Events . | . . . . Feedback Events . | . . . . Feedback Blocked . | . . . . Robot Schematics Acquired . | . . . . Robots Built . | . . . . Authchips . | . . . . Time . | . . . . Total Robot Build Rating . | . . . . Part Schematics Acquired . | . . . . Parts Built . | . . . . Authchips . | . . . . Time . | . . . . Total Part Build Rating . | . . . . Parts Repaired . | . . . . Time . | . . . . Parts Recycled . | . . . . Recycled Matter . | . . . . Retrieved Matter . | . . . . Retrieved Components . | . . . . Parts Scanalyzed . | . . . . Part Schematics Acquired . | . . . . Parts Damaged . | . . . . Bothacking | -11 -10 -9 -9 ------------ Run | Yrd Mat Mat Min Used RIF Installer . | . . . . Robots Hacked . | . . . . Non-combat . | . . . . Combat . | . . . . Robot Hacks Applied . | . . . . Relay Couplers Released . | . . . . Fabnet Peak Effective % . | . . . . Robots Rewired . | . . . . Allies Hacked . | . . . . Hacks Repelled . | . . . . Allies | -11 -10 -9 -9 -------- Run | Yrd Mat Mat Min Total Allies . | . . . . Largest Group . | . . . . Highest-Rated Group . | . . . . Highest-Rated Ally . | . . . . Total Orders . | . . . . Ally Attacks . | . . . . Total Damage . | . . . . Kills . | . . . . Allies Corrupted . | . . . . Allies Melted . | . . . . Intel | -11 -10 -9 -9 ------- Run | Yrd Mat Mat Min Robot Analysis Total . | . . . . Derelict Logs Recovered . | . . . . Drone Launches . | . . . . Drone Recoveries . | . . . . Exploration | -11 -10 -9 -9 ------------- Run | Yrd Mat Mat Min Turns Passed 345 | 66 133 123 23 Spaces Moved 276 | 60 124 79 13 Core 31 | 16 . 15 . Treads . | . . . . Legs 48 | . . 35 13 Wheels 197 | 44 124 29 . Hover . | . . . . Flight . | . . . . Fastest Speed 50 | 50 80 50 120 Average Speed 83 | 72 80 92 120 Slowest Speed 120 | 80 80 120 120 Overloaded Moves . | . . . . Propulsion Burnouts . | . . . . Robots Hopped . | . . . . Cave-ins Triggered . | . . . . Exploration Rate (%) 12 | 6 28 11 5 Regions Visited 3 Branch Regions 1 Pre-discovered Areas . | . . . . Known Exits Taken . | . . . . Unknown Exits Taken 3 | 1 1 1 . Scrap Searched . | . . . . Spaces Dug . | . . . . Terrain Destroyed 12 | . 12 . . Melee . | . . . . Projectile . | . . . . AOE 12 | . 12 . . Terrain Rammed . | . . . . Walls Destroyed . | . . . . Machines Disabled . | . . . . Actions | -11 -10 -9 -9 --------- Run | Yrd Mat Mat Min Total 333 | 74 140 102 17 Wait . | . . . . Move 273 | 59 123 78 13 Hop . | . . . . Pick Up 13 | 6 4 3 . Fast Attach . | . . . . Attach 12 | 5 1 6 . Detach . | . . . . Swap 3 | . 3 . . Drop 1 | . 1 . . Fire 31 | 4 8 15 4 Melee . | . . . . Ram . | . . . . Kick . | . . . . Crush . | . . . . Escape Stasis . | . . . . Rewire . | . . . . Trap . | . . . . Miscellaneous . | . . . . Route ------- -11/Scrapyard -10/Materials -9/Materials -9/Mines History --------- Turn | Location | Event 2 | -11/Scrapyard | Met Revision 17 44 | -11/Scrapyard | Discovered new exit (range 8) 67 | -11/Scrapyard | Entered Materials 175 | -10/Materials | Discovered new exit (range 9) 200 | -10/Materials | Entered another Materials area 200 | -9/Materials | Evolved 2 slots: Propulsion x1, Utility x1 264 | -9/Materials | Core integrity fell below 50% 272 | -9/Materials | Core integrity fell below 20% 294 | -9/Materials | Lost 9 parts (2p2n1u4w) 304 | -9/Materials | Discovered new exit (range 15) 315 | -9/Materials | Build established: Mutant 323 | -9/Materials | Entered Mines 346 | -9/Mines | Destroyed by L-31 Rogue with Katana Last Messages --------------- Wheel destroyed. Ion Engine destroyed. Wheel destroyed. G-47 Trooper destroyed. Sml. Laser destroyed. Ion Engine destroyed. Critical hit (Burn: +37). EM Pulse Gun destroyed. Sml. Laser destroyed. EM Pulse Gun destroyed. Critical hit (Burn: +37). Core Shielding destroyed. Acquired Aluminum Leg. Acquired Sml. Laser. G-34 Mercenary destroyed. EXIT=FOUND LOCATION=UNKNOWN GOAL=ESCAPE Aluminum Leg destroyed. Sml. Laser destroyed. Map ----- +----------------------------------------------------+ | | | | | | | | | | | | | | | | | | | | | | | | | | | | | | | ????????????????????????????????????????????????? | | ??????????????????????????????####??????????????? | | ?????????????????????????????## ##?????????????? | | ?????????????????????????????# #?????????????? | | ?????????????????????????????# ##????????????? | | ?????????????????????????????# #????????????? | | ?????????????????????????????# ### #????????? | | ??????????????????????####???## #????????? | | ??????????????????????? #????### ######????????? | | ???????????????????????# #??##### ####??????????? | | ???????????????????????#@#### #??????????? | | ???????????????????????# l ##### #??????????? | | ???????????????????????###### $#?????#??????????? | | ????????????????????????????# #????????????????? | | ???????????????????????????? #????????????????? | | ??????????????????????????? ##????????????????? | | ??????????????????????????# ##?????????????????? | | ?????????????????????????? #???????????????????? | | ?????????????????????????# ????????????????????? | | ?????????????????????????# ????????????????????? | | ?????????????????????????##?????????????????????? | | ????????????????????????????????????????????????? | | ????????????????????????????????????????????????? | | ????????????????????????????????????????????????? | | ????????????????????????????????????????????????? | | ????????????????????????????????????????????????? | | ????????????????????????????????????????????????? | | ????????????????????????????????????????????????? | | ????????????????????????????????????????????????? | | ????????????????????????????????????????????????? | | ????????????????????????????????????????????????? | | ????????????????????????????????????????????????? | | ????????????????????????????????????????????????? | | ????????????????????????????????????????????????? | | ????????????????????????????????????????????????? | +----------------------------------------------------+ Best States ------------- Heat Dissipation 28 Energy Generation 10 Energy Capacity 250 Matter Stores 300 Matter Capacity 300 Sight Range 16 Terrain Scan Density 10 Core Shielding 20 Evasion (%) 55 Item Schematics ----------------- None Robot Schematics ------------------ None Fabricated ------------ Nothing Alien Tech Used ----------------- None Achievements -------------- None Challenges ------------ None Game ------ Seed AerolevMappingNanosword Manual? 0 Play Time 00:05:57 Cumulative 0.9 hours Start 2024.11.24 @ 15:51:28 End 2024.11.24 @ 15:57:15 Sessions 1 Manual Loads 0 Difficulty Rogue Special Mode None Game No. 2 Rogue 2 Adventurer 0 Explorer 0 Win Type - Total 0 Types 0/0/0/0/0/0/0/0/0 Lore% 2 Gallery% 2 Achievement% 2 Wizard Run 0 Options --------- Layout 1 ASCII 0 Keyboard 0 Movement Mouse Keybinds 0 Fullscreen 1 Font 24/Smallcaps Map View 50x35 Zoom Use 0% Tactical HUD 0 Map Filters NONE Filters NONE Steam 1 RUN: a7bb0034-63b3-437e-9e7f-8cc74cc1604c